bitfinex-derivatives/quotes_BNBF0:USTF0_20250524
["timestamp","ask_amount","ask_price","bid_price","bid_amount"]
[1748063191732,0.43750723,668.72,667.76,1.537]
[1748063192029,0.43750723,668.71,667.76,1.537]
[1748063192229,0.43750723,668.7,667.76,1.537]
[1748063192432,0.43750723,668.69,667.76,1.537]
[1748063192632,0.43750723,668.68,667.76,1.537]
[1748063192833,0.43750723,668.67,667.76,1.537]
[1748063193030,0.43737122,668.66,667.76,1.537]
[1748063193234,0.43737122,668.65,667.76,1.537]
[1748063193434,0.43737122,668.64,667.76,1.537]
[1748063193635,0.43737122,668.63,667.76,1.537]
[1748063193828,0.43737122,668.62,667.76,1.537]
[1748063194029,0.43737122,668.61,667.76,1.537]
[1748063194230,0.43737122,668.6,667.76,1.537]
[1748063194429,0.43737122,668.59,667.76,1.537]
[1748063194634,0.43737122,668.58,667.76,1.537]
[1748063194835,0.43751954,668.57,667.76,1.537]
[1748063195036,0.43751954,668.56,667.76,1.537]
[1748063195239,1.48749039,668.7,667.76,1.537]
[1748063195537,0.43759776,668.69,667.76,1.537]
[1748063195836,0.43759776,668.68,667.76,1.537]
[1748063196137,0.43759776,668.67,667.76,1.537]
[1748063196337,0.43759776,668.66,667.76,1.537]
[1748063196538,0.43759776,668.65,667.76,1.537]
[1748063196739,0.4376843,668.64,667.76,1.537]
[1748063196933,0.4376843,668.63,667.76,1.537]
[1748063197137,0.4376843,668.62,667.76,1.537]
[1748063197437,0.4376843,668.61,667.76,1.537]
[1748063197638,0.4376843,668.6,667.76,1.537]
[1748063197838,0.4376843,668.59,667.76,1.537]
[1748063198034,0.4376843,668.58,667.76,1.537]
[1748063198238,0.4376843,668.57,667.76,1.537]
[1748063198440,0.4376843,668.56,667.76,1.537]
[1748063198637,1.48749039,668.66,667.77,1.1123956]
[1748063198941,0.43778924,668.65,667.77,1.1123956]
[1748063199141,0.43778924,668.64,667.77,1.1123956]
[1748063199342,0.43778924,668.63,667.77,1.1123956]
[1748063199542,0.43778924,668.62,667.77,1.1123956]
[1748063199837,0.43778924,668.61,667.77,1.1123956]
[1748063200035,0.43778924,668.6,667.77,1.1123956]
[1748063200240,0.43780657,668.59,667.77,1.1123956]
[1748063200442,0.43780657,668.58,667.77,1.1123956]
[1748063200743,0.43780657,668.57,667.77,1.1123956]
[1748063200943,0.43780657,668.56,667.77,1.1123956]
[1748063201143,1.48749039,668.66,667.77,1.1123956]
[1748063201343,0.43781817,668.65,667.75,1.669]
[1748063201544,0.43781817,668.64,667.75,1.669]
[1748063201744,0.43781817,668.63,667.75,1.669]
[1748063201942,0.43781817,668.62,667.75,1.669]
[1748063202241,0.43781832,668.61,667.75,1.669]
[1748063202541,0.43781832,668.6,667.75,1.669]
[1748063202837,0.43781832,668.59,667.75,1.669]
[1748063203037,0.43781832,668.58,667.75,1.669]
[1748063203244,0.43781832,668.57,667.75,1.669]
[1748063203442,0.43781832,668.56,667.75,1.669]
[1748063203643,0.43781832,668.55,667.76,1.242]
[1748063203837,1.48749039,668.81,667.76,1.242]
[1748063204040,0.4378536,668.8,667.76,1.242]
[1748063204238,0.4378536,668.79,667.76,1.242]
[1748063204437,0.4378536,668.78,667.76,1.242]
[1748063204640,0.4378536,668.77,667.76,1.242]
[1748063204838,0.4378536,668.76,667.76,1.242]
[1748063205037,0.4378536,668.75,667.76,1.242]
[1748063205241,0.4378536,668.74,667.76,1.242]
[1748063205538,0.4378536,668.73,667.76,1.242]
[1748063205736,0.4378536,668.72,667.76,1.242]
[1748063205938,0.4378536,668.71,667.76,1.242]
[1748063206141,0.4378536,668.7,667.76,1.242]
[1748063206343,0.4378536,668.69,667.76,1.242]
[1748063206640,0.4378536,668.68,667.76,1.242]
[1748063206839,0.4378536,668.67,667.76,1.242]
[1748063207043,0.4378536,668.66,667.76,1.242]
[1748063207340,0.4378536,668.65,667.76,1.242]
[1748063207643,0.4378536,668.64,667.76,1.242]
[1748063207842,0.43795681,668.63,667.76,1.242]
[1748063208042,0.43795681,668.62,667.76,1.242]
[1748063208247,0.43795681,668.61,667.76,1.242]
[1748063208544,0.43795681,668.6,667.76,1.242]
[1748063208739,0.43795681,668.59,667.76,1.242]
[1748063208943,0.43795681,668.58,667.76,1.242]
[1748063209139,1.48749039,668.84,667.76,1.242]
[1748063209344,0.43802908,668.83,667.76,1.242]
[1748063209544,0.43802908,668.82,667.76,1.242]
[1748063209744,1.48749039,668.79,667.76,1.242]
[1748063209944,0.43802908,668.78,667.76,1.242]
[1748063210145,0.43802908,668.77,667.76,1.242]
[1748063210345,0.43802908,668.76,667.76,1.242]
[1748063210538,0.43802908,668.75,667.76,1.242]
[1748063210740,0.43802908,668.74,667.77,1.439]
[1748063210941,0.43807831,668.73,667.77,1.439]
[1748063211244,0.43807831,668.72,667.77,1.439]
[1748063211441,0.43807831,668.71,667.77,1.439]
[1748063211645,0.43807831,668.7,667.77,1.439]
[1748063211846,0.43807831,668.69,667.77,1.439]
[1748063212142,0.43807831,668.68,667.77,1.439]
[1748063212342,0.43807831,668.67,667.77,1.439]
[1748063212549,0.43807831,668.66,667.77,1.439]
[1748063212753,0.43807831,668.65,667.77,1.439]
[1748063212953,0.43807831,668.64,667.77,1.439]
[1748063213153,0.43807831,668.63,667.77,1.439]
[1748063213350,0.43807831,668.62,667.77,1.439]
[1748063213550,0.43807831,668.61,667.77,1.439]
[1748063213754,0.43807831,668.6,667.77,1.439]
[1748063213955,0.43807831,668.59,667.77,1.439]
[1748063214156,0.43807831,668.58,667.77,1.439]
[1748063214358,0.43807831,668.57,667.77,1.439]
[1748063214558,0.43829756,668.56,667.77,1.439]
[1748063214854,0.43829756,668.55,667.77,1.439]
[1748063215059,0.43829756,668.54,667.77,1.439]
[1748063215358,0.43829756,668.53,667.77,1.439]
[1748063215559,0.43829756,668.52,667.77,1.439]
[1748063215860,0.43829756,668.51,667.77,1.439]
[1748063216058,0.43829756,668.5,667.77,1.439]
[1748063216259,0.43829756,668.49,667.77,1.439]
[1748063216461,0.43849693,668.48,667.77,1.439]
[1748063216656,1.48749039,668.72,667.77,1.439]
[1748063216657,0.43849693,668.47,667.77,1.439]
[1748063216855,0.43849693,668.46,667.77,1.439]
[1748063217054,0.43849693,668.45,667.77,1.439]
[1748063217260,0.43849693,668.44,667.77,1.439]
[1748063217462,0.43849693,668.43,667.77,1.439]
[1748063217655,0.43849693,668.42,667.77,1.439]
[1748063217858,0.43849693,668.41,667.77,1.439]
[1748063218058,1.48749039,668.72,667.77,1.439]
[1748063218261,0.43864997,668.71,667.77,1.439]
[1748063218460,0.43864997,668.7,667.77,1.439]
[1748063218661,0.43864997,668.69,667.77,1.439]
[1748063218960,0.43864997,668.68,667.77,1.439]
[1748063219161,0.43864997,668.67,667.77,1.439]
[1748063219362,0.43864997,668.66,667.78,1.293]
[1748063219561,0.43864997,668.65,667.78,1.293]
[1748063219860,0.43864997,668.64,667.78,1.293]
[1748063220061,0.43878141,668.63,667.78,1.293]
[1748063220255,1.48749039,668.7,667.78,1.293]
[1748063220256,0.43878141,668.62,667.78,1.293]
[1748063220460,1.48749039,668.7,667.78,1.293]
[1748063220461,0.43878141,668.61,667.79,1.665]
[1748063220661,0.43878141,668.6,667.79,1.665]
[1748063220857,0.43878141,668.59,667.79,1.665]
[1748063221059,0.43878141,668.58,667.79,1.665]
[1748063221260,0.43873498,668.57,667.79,1.665]
[1748063221463,0.43873498,668.56,667.79,1.665]
[1748063221762,0.43873498,668.55,667.79,1.665]
[1748063221958,0.43873498,668.54,667.79,1.665]
[1748063222162,0.43873498,668.53,667.79,1.665]
[1748063222362,0.43873498,668.52,667.79,1.665]
[1748063222563,0.43873498,668.51,667.79,1.665]
[1748063222765,0.43873498,668.5,667.79,1.665]
[1748063222963,0.43873498,668.49,667.79,1.665]
[1748063223157,0.43873498,668.48,667.79,1.665]
[1748063223362,0.43873498,668.47,667.79,1.665]
[1748063223659,0.43873498,668.46,667.79,1.665]
[1748063223859,0.43873498,668.45,667.79,1.665]
[1748063224063,0.43873498,668.44,667.79,1.665]
[1748063224263,0.43873498,668.43,667.79,1.665]
[1748063224463,0.43873498,668.42,667.79,1.665]
[1748063224665,0.43873498,668.41,667.79,1.665]
[1748063224866,0.43873498,668.4,667.79,1.665]
[1748063225065,0.43873498,668.39,667.79,1.665]
[1748063225266,0.43873498,668.38,667.79,1.665]
[1748063225566,1.48749039,668.65,667.79,1.665]
[1748063225865,0.43929276,668.64,667.79,1.665]
[1748063226058,0.43929276,668.63,667.79,1.665]
[1748063226261,0.43929276,668.62,667.79,1.665]
[1748063226463,0.43929276,668.61,667.79,1.665]
[1748063226663,0.43934777,668.6,667.79,1.665]
[1748063226863,0.43934777,668.59,667.81,1.1123956]
[1748063227062,0.43934777,668.58,667.81,1.1123956]
[1748063227263,0.43934777,668.57,667.81,1.1123956]
[1748063227466,0.43934777,668.56,667.81,1.1123956]
[1748063227664,0.43934777,668.55,667.81,1.1123956]
[1748063227865,0.43934777,668.54,667.81,1.1123956]
[1748063228062,0.43934777,668.53,667.81,1.1123956]
[1748063228265,0.43934777,668.52,667.81,1.1123956]
[1748063228469,1.48749039,668.73,667.81,1.1123956]
[1748063229469,1.48749039,668.65,667.9,1.1123956]
[1748063231868,1.48749039,668.73,667.96,1.1123956]
[1748063233769,1.48749039,668.73,667.97,1.432]
[1748063236665,2.21733955,668.9,667.97,1.432]
[1748063236666,1.48749039,668.74,667.97,1.432]
[1748063239072,1.48749039,668.74,667.98,1.482]
[1748063241273,1.48749039,668.75,667.98,1.482]
[1748063243671,1.48749039,668.79,667.98,1.482]
[1748063249379,1.48749039,668.91,667.98,1.482]
[1748063251079,1.48749039,668.91,667.89,1.1123956]
[1748063251782,1.48749039,669.04,667.95,1.1123956]
[1748063253280,1.48749039,669.04,667.96,1.335]
[1748063254283,1.48749039,669.04,667.97,1.566]
[1748063255276,0.26025599,669.19,667.97,2.6783956]
[1748063255277,1.48749039,668.99,667.97,2.6783956]
[1748063257781,1.48749039,669.09,668.02,1.1123956]
[1748063260283,1.48749039,669.1,668.02,1.1123956]
[1748063262883,1.48749039,669.09,668.01,1.1123956]
[1748063265389,1.48749039,669.05,668.03,1.1123956]
[1748063265990,1.48749039,669.05,668.04,1.497]
[1748063267188,1.48749039,669.04,668.04,2.6093956]
[1748063269687,1.48749039,669.04,668.04,1.497]
[1748063270191,1.48749039,669.04,668.05,1.589]
[1748063272093,1.48749039,669.03,668.05,1.589]
[1748063275295,1.48749039,669.01,668.05,1.589]
[1748063277997,1.48749039,668.99,668.05,1.589]
[1748063278398,1.48749039,668.99,668.06,1.85]
[1748063285507,1.48749039,668.96,668.07,1.1123956]
[1748063286610,1.48749039,668.94,668.08,1.1123956]
[1748063288008,1.48749039,668.96,668.08,1.1123956]
[1748063288308,1.48749039,668.96,668.09,1.635]
[1748063290610,1.48749039,668.96,668.1,1.1123956]
[1748063290807,1.48749039,668.93,668.1,1.1123956]
[1748063293409,1.48749039,668.91,668.11,1.1123956]
[1748063297910,1.48749039,668.93,668.1,1.1123956]
[1748063300013,1.48749039,668.92,668.11,1.1123956]
[1748063302219,1.48749039,668.91,668.12,1.1123956]
[1748063304222,1.48749039,668.91,668.13,1.783]
[1748063304518,1.48749039,668.93,668.13,1.783]
[1748063306818,1.48749039,668.9,668.14,1.1123956]
[1748063307523,0.43911638,668.89,668.14,1.1123956]
[1748063307723,0.43911638,668.88,668.14,1.1123956]
[1748063308024,0.43911638,668.87,668.14,1.1123956]
[1748063308218,0.43911638,668.86,668.14,1.1123956]
[1748063308523,0.43911638,668.85,668.14,1.1123956]
[1748063308722,0.43911638,668.84,668.14,1.1123956]
[1748063308919,0.43923599,668.83,668.14,1.1123956]
[1748063309119,0.43923599,668.82,668.14,1.1123956]
[1748063309319,0.43923599,668.81,668.14,1.1123956]
[1748063309522,0.43923599,668.8,668.18,1.1123956]
[1748063309723,0.43923599,668.79,668.18,1.1123956]
[1748063310020,0.43923599,668.78,668.18,1.1123956]
[1748063310223,0.43923599,668.77,668.18,1.1123956]
[1748063310425,0.43923599,668.76,668.18,1.1123956]
[1748063310626,0.43923599,668.75,668.18,1.1123956]
[1748063310826,0.43923599,668.74,668.18,1.1123956]
[1748063311027,0.43923599,668.73,668.18,1.1123956]
[1748063311229,0.43923599,668.72,668.18,1.1123956]
[1748063311428,0.43923599,668.71,668.18,1.1123956]
[1748063311623,0.43923599,668.7,668.18,1.1123956]
[1748063311823,1.48749039,668.9,668.15,1.1123956]
[1748063312026,0.43944736,668.89,668.15,1.1123956]
[1748063312226,0.43944736,668.88,668.15,1.1123956]
[1748063312424,0.43944736,668.87,668.15,1.1123956]
[1748063312727,0.43944736,668.86,668.15,1.1123956]
[1748063312927,0.43944736,668.85,668.15,1.1123956]
[1748063313124,0.43944736,668.84,668.15,1.1123956]
[1748063313327,0.43944736,668.83,668.15,1.1123956]
[1748063313628,0.43944736,668.82,668.15,1.1123956]
[1748063313826,1.48749039,668.9,668.15,1.1123956]
[1748063313827,0.43944736,668.81,668.15,1.1123956]
[1748063314132,0.43944736,668.8,668.16,1.1123956]
[1748063314329,0.43951253,668.79,668.16,1.1123956]
[1748063314528,0.43951253,668.78,668.16,1.1123956]
[1748063314729,0.43951253,668.77,668.16,1.1123956]
[1748063315025,0.43951253,668.76,668.16,1.1123956]
[1748063315227,0.43951253,668.75,668.16,1.1123956]
[1748063315427,0.43951253,668.74,668.16,1.1123956]
[1748063315628,0.43951253,668.73,668.16,1.1123956]
[1748063315829,1.48749039,668.89,668.16,1.1123956]
[1748063316527,1.48749039,668.88,668.17,1.1123956]
[1748063318131,1.48749039,668.88,668.18,1.512]
[1748063319228,1.48749039,668.94,668.18,1.512]
[1748063321028,1.48749039,668.93,668.18,1.512]
[1748063322133,1.48749039,668.93,668.18,3.145]
[1748063323534,1.48749039,668.9,668.18,3.145]
[1748063326239,1.48749039,668.94,668.18,3.145]
[1748063329143,1.48749039,668.91,668.18,3.145]
[1748063331043,1.48749039,668.94,668.18,3.145]
[1748063333546,1.48749039,669.0,668.18,3.145]
[1748063337649,1.48749039,669.02,668.18,3.145]
[1748063339551,1.48749039,669.01,668.18,3.145]
[1748063341951,1.48749039,669.03,668.18,3.145]
[1748063343951,1.48749039,669.02,668.18,3.145]
[1748063346560,1.48749039,668.99,668.18,3.145]
[1748063347559,1.48749039,668.99,668.19,0.29931606]
[1748063348954,1.48749039,668.99,668.58,1.1123956]
[1748063349259,1.48749039,669.23,668.58,1.1123956]
[1748063351260,1.48749039,669.43,668.43,1.1123956]
[1748063351563,1.48749039,669.43,668.43,2.3533956]
[1748063353965,1.48749039,669.47,668.43,1.241]
[1748063355866,1.48749039,669.5,668.43,1.241]
[1748063356365,1.48749039,669.5,668.43,2.731]
[1748063358865,1.48749039,669.48,668.43,2.731]
[1748063361469,1.48749039,669.45,668.43,2.731]
[1748063366074,1.48749039,669.47,668.43,2.731]
[1748063366274,1.48749039,669.47,668.43,4.216]
[1748063367774,1.48749039,669.48,668.43,4.216]
[1748063370080,1.48749039,669.65,668.43,4.216]
[1748063370282,0.29866794,669.64,668.43,4.216]
[1748063391508,1.48749039,669.53,668.43,4.216]
[1748063391708,0.29872147,669.52,668.43,4.216]
[1748063394111,1.48749039,669.43,668.43,4.216]
[1748063394309,0.29876609,669.42,668.43,4.216]
[1748063396607,1.48749039,669.13,668.43,4.216]
[1748063399108,0.29876609,669.42,668.43,4.216]
[1748063403614,1.48749039,669.4,668.43,4.216]
[1748063406320,0.29876609,669.42,668.43,4.216]
[1748063409230,1.78625648,669.42,668.43,4.216]
[1748063413232,1.48749039,669.41,668.43,4.216]
[1748063416327,1.48749039,669.33,668.43,4.216]
[1748063418327,1.48749039,669.29,668.43,4.216]
[1748063418531,1.48749039,669.29,668.43,5.3283956]
[1748063421030,1.48749039,669.28,668.43,4.216]
[1748063422733,0.29883305,669.27,668.43,4.216]
[1748063423537,1.48749039,669.16,668.43,4.216]
[1748063425730,1.48749039,669.09,668.43,4.216]
[1748063427936,1.48749039,669.11,668.43,4.216]
[1748063430438,0.29883305,669.27,668.43,4.216]
[1748063430439,1.48749039,669.12,668.43,4.216]
[1748063432535,1.48749039,669.23,668.43,4.216]
[1748063434942,1.48749039,669.16,668.43,4.216]
[1748063437343,1.48749039,669.14,668.43,4.216]
[1748063438145,1.7863815,669.14,668.43,4.216]
[1748063440045,0.29889111,669.14,668.43,4.216]
[1748063440245,1.48749039,669.19,668.43,4.216]
[1748063442447,1.48749039,669.37,668.43,4.216]
[1748063442647,1.7862788,669.37,668.43,4.216]
[1748063447247,1.48749039,669.33,668.43,4.216]
[1748063449557,1.48749039,669.32,668.43,4.216]
[1748063454258,1.48749039,669.29,668.43,4.216]
[1748063459564,1.48749039,669.3,668.43,4.216]
[1748063461666,1.48749039,669.26,668.43,4.216]
[1748063463670,1.48749039,669.25,668.43,4.216]
[1748063465670,1.78633237,669.25,668.43,4.216]
[1748063465872,0.29884645,669.24,668.43,4.216]
[1748063466064,1.48749039,669.16,668.43,4.216]
[1748063467874,1.78637257,669.16,668.43,4.216]
[1748063468071,1.48749039,669.06,668.43,4.216]
[1748063471080,1.48749039,668.91,668.43,4.216]
[1748063472883,1.48749039,668.92,668.43,4.216]
[1748063475183,1.48749039,668.91,668.43,4.216]
[1748063479889,1.48749039,668.89,668.43,4.216]
[1748063482190,2.21733955,669.02,668.43,4.216]
[1748063482191,1.48749039,669.05,668.43,4.216]
[1748063482391,0.29893578,669.04,668.43,4.216]
[1748063483789,0.43791768,669.03,668.43,4.216]
[1748063483990,0.7368624,669.02,668.43,4.216]
[1748063484290,0.73686687,669.01,668.43,4.216]
[1748063484490,0.73687134,669.0,668.43,4.216]
[1748063484687,0.73665587,668.99,668.43,4.216]
[1748063484888,0.73666033,668.98,668.43,4.216]
[1748063485083,1.48749039,668.77,668.43,4.216]
[1748063485284,0.43769774,668.76,668.43,4.216]
[1748063485584,0.43769774,668.75,668.43,4.216]
[1748063485788,0.43769774,668.74,668.43,4.216]
[1748063485989,0.43769774,668.73,668.43,4.216]
[1748063486190,0.43769774,668.72,668.43,4.216]
[1748063486390,0.43769774,668.71,668.43,4.216]
[1748063486589,0.43769774,668.7,668.43,4.216]
[1748063486890,0.43737981,668.69,668.43,4.216]
[1748063487086,0.43737981,668.68,668.43,4.216]
[1748063487283,1.48749039,668.6,668.43,4.216]
[1748063487488,0.43737981,668.59,668.43,4.216]
[1748063487791,0.43737981,668.59,667.69,1.1123956]
[1748063487990,0.43723764,668.58,667.69,1.1123956]
[1748063488190,0.43723764,668.57,667.69,1.1123956]
[1748063488390,0.43723764,668.56,667.69,1.1123956]
[1748063488590,0.43723764,668.55,667.69,1.1123956]
[1748063488791,0.43723764,668.54,667.69,1.1123956]
[1748063488991,0.43723764,668.53,667.69,1.1123956]
[1748063489190,0.43723764,668.52,667.69,1.1123956]
[1748063489393,0.43723764,668.51,667.69,1.1123956]
[1748063489692,0.43723764,668.5,667.69,1.1123956]
[1748063489887,0.43723764,668.49,667.69,1.1123956]
[1748063490090,0.43723764,668.48,667.51,1.1123956]
[1748063490288,1.48749039,668.62,667.51,1.1123956]
[1748063490487,0.43668468,668.61,667.51,1.1123956]
[1748063490689,0.43668468,668.6,667.52,1.429]
[1748063490892,0.43668468,668.59,667.52,1.429]
[1748063491092,0.43668468,668.58,667.52,1.429]
[1748063491393,1.48749039,668.62,667.53,1.521]
[1748063491394,0.43668468,668.57,667.53,1.521]
[1748063491593,0.43646588,668.56,667.53,1.521]
[1748063491887,0.43646588,668.55,667.54,1.353]
[1748063492093,0.43646588,668.54,667.54,1.353]
[1748063492388,1.48749039,668.62,667.54,1.353]
[1748063492389,0.43646588,668.53,667.54,1.353]
[1748063492691,0.43646588,668.52,667.54,1.353]
[1748063492891,0.43646588,668.51,667.54,1.353]
[1748063493087,1.48749039,668.67,667.54,1.353]
[1748063493289,0.43611734,668.66,667.54,1.353]
[1748063493488,0.43611734,668.65,667.54,1.353]
[1748063493693,0.43611734,668.64,667.54,1.353]
[1748063493892,0.43611734,668.63,667.54,1.353]
[1748063494086,0.43611734,668.62,667.54,1.353]
[1748063494291,0.43611734,668.61,667.54,1.353]
[1748063494492,0.43611734,668.6,667.54,1.353]
[1748063494692,0.43611734,668.59,667.54,1.353]
[1748063494888,0.43611734,668.58,667.54,1.353]
[1748063495092,0.43579372,668.57,667.54,1.353]
[1748063495293,0.43579372,668.56,667.54,1.353]
[1748063495493,0.43579372,668.55,667.54,1.353]
[1748063495693,0.43579372,668.54,667.54,1.353]
[1748063495891,0.43579372,668.53,667.54,1.353]
[1748063496087,1.48749039,668.69,667.54,1.353]
[1748063496291,0.43565141,668.68,667.54,1.353]
[1748063496487,0.43565141,668.67,667.54,1.353]
[1748063496691,0.43565141,668.66,667.54,1.353]
[1748063496893,0.43551519,668.65,667.54,1.353]
[1748063497089,0.43551519,668.64,667.54,1.353]
[1748063497394,0.43551519,668.63,667.54,1.353]
[1748063497594,0.43551519,668.62,667.54,1.353]
[1748063497895,0.43551519,668.61,667.54,1.353]
[1748063498095,1.48749039,668.73,667.54,1.353]
[1748063498096,0.43551519,668.6,667.54,1.353]
[1748063498296,0.43551519,668.59,667.54,1.353]
[1748063498489,0.43551519,668.58,667.54,1.353]
[1748063498691,1.48749039,668.76,667.54,1.353]
[1748063498692,0.43551519,668.57,667.54,1.353]
[1748063498892,0.43551519,668.56,667.54,1.353]
[1748063499093,0.43551519,668.55,667.54,1.353]
[1748063499292,0.43551519,668.54,667.54,1.353]
[1748063499494,0.43551519,668.53,667.54,1.353]
[1748063499695,0.43551519,668.52,667.54,1.353]
[1748063499894,0.43551519,668.51,667.54,1.353]
[1748063500089,1.48749039,668.76,667.54,1.353]
[1748063500292,0.43508888,668.75,667.54,1.353]
[1748063500496,0.43508888,668.74,667.54,1.353]
[1748063500697,0.43508888,668.73,667.54,1.353]
[1748063500890,0.43508888,668.72,667.54,1.353]
[1748063501095,0.43508888,668.71,667.54,1.353]
[1748063501290,0.43508888,668.7,667.54,1.353]
[1748063501495,0.43508888,668.69,667.54,1.353]
[1748063501697,0.43508888,668.68,667.54,1.353]
[1748063501895,0.43508888,668.67,667.54,1.353]
[1748063502097,0.43508888,668.66,667.54,1.353]
[1748063502399,0.43508888,668.65,667.54,1.353]
[1748063502594,0.43508888,668.64,667.54,1.353]
[1748063502800,0.43508888,668.63,667.54,1.353]
[1748063503095,0.43508888,668.62,667.54,1.353]
[1748063503299,2.21733955,668.98,667.54,1.353]
[1748063503300,0.43508888,668.61,667.54,1.353]
[1748063503599,0.43508888,668.6,667.54,1.353]
[1748063503799,0.43508888,668.59,667.54,1.353]
[1748063504001,0.43508888,668.58,667.54,1.353]
[1748063504197,0.43508888,668.57,667.54,1.353]
[1748063504407,0.43508888,668.56,667.54,1.353]
[1748063504606,0.43508888,668.55,667.54,1.353]
[1748063504806,0.43508888,668.54,667.54,1.353]
[1748063505007,1.48749039,668.86,667.54,1.353]
[1748063505204,0.43483368,668.85,667.54,1.353]
[1748063505507,1.48749039,668.79,667.54,1.353]
[1748063505704,0.43483368,668.78,667.54,1.353]
[1748063505907,0.43483368,668.77,667.54,1.353]
[1748063506108,0.43483368,668.76,667.54,1.353]
[1748063506306,0.43483368,668.75,667.54,1.353]
[1748063506506,0.43483368,668.74,667.54,1.353]
[1748063506703,0.43483368,668.73,667.54,1.353]
[1748063506908,0.43483368,668.72,667.54,1.353]
[1748063507105,0.43483368,668.71,667.54,1.353]
[1748063507309,0.43483368,668.7,667.54,1.353]
[1748063507506,0.43483368,668.69,667.54,1.353]
[1748063507710,0.43482177,668.68,667.54,1.353]
[1748063507910,0.43482177,668.67,667.54,1.353]
[1748063508110,0.43482177,668.66,667.54,1.353]
[1748063508312,0.43482177,668.65,667.54,1.353]
[1748063508510,0.43482177,668.64,667.54,1.353]
[1748063508705,0.43482177,668.63,667.54,1.353]
[1748063508905,0.43482177,668.62,667.54,1.353]
[1748063509109,0.43482177,668.61,667.54,1.353]
[1748063509311,0.43482177,668.6,667.54,1.353]
[1748063509506,0.43482177,668.59,667.54,1.353]
[1748063509711,0.43482177,668.58,667.54,1.353]
[1748063509912,1.48749039,668.78,667.54,1.353]
[1748063509913,0.43482177,668.57,667.54,1.353]
[1748063510211,0.43482177,668.56,667.54,1.353]
[1748063510512,0.43482177,668.55,667.54,1.353]
[1748063510706,0.43482177,668.54,667.54,1.353]
[1748063510911,0.43482177,668.53,667.54,1.353]
[1748063511111,1.48749039,668.79,667.54,1.353]
[1748063511412,0.43491085,668.78,667.54,1.353]
[1748063511605,0.43491085,668.77,667.54,1.353]
[1748063511806,0.43491085,668.76,667.54,1.353]
[1748063512011,0.43491085,668.75,667.54,1.353]
[1748063512306,0.43491085,668.74,667.54,1.353]
[1748063512510,0.43491085,668.73,667.54,1.353]
[1748063512710,0.43491085,668.72,667.54,1.353]
[1748063512911,0.43491085,668.71,667.55,1.737]
[1748063513112,0.43501553,668.7,667.55,1.737]
[1748063513305,0.43501553,668.69,667.55,1.737]
[1748063513513,0.43501553,668.68,667.55,1.737]
[1748063513808,0.43501553,668.67,667.55,1.737]
[1748063514011,0.43501553,668.66,667.55,1.737]
[1748063514311,0.43501553,668.65,667.55,1.737]
[1748063514513,0.43501553,668.64,667.55,1.737]
[1748063514709,0.43501553,668.63,667.55,1.737]
[1748063514913,0.43517334,668.62,667.55,1.737]
[1748063515211,0.43517334,668.61,667.55,1.737]
[1748063515409,0.43517334,668.6,667.55,1.737]
[1748063515715,0.43517334,668.59,667.55,1.737]
[1748063516009,0.43517334,668.58,667.55,1.737]
[1748063516209,0.43517334,668.57,667.55,1.737]
[1748063516414,0.43517334,668.56,667.55,1.737]
[1748063516615,0.43517334,668.55,667.55,1.737]
[1748063516914,0.43517334,668.54,667.55,1.737]
[1748063517114,0.43517334,668.53,667.55,1.737]
[1748063517313,0.43517334,668.52,667.55,1.737]
[1748063517514,0.43517334,668.51,667.55,1.737]
[1748063517712,0.43517334,668.5,667.55,1.737]
[1748063517911,0.43517334,668.49,667.56,1.288]
[1748063518113,1.48749039,668.68,667.56,1.288]
[1748063518307,0.2991012,668.67,667.56,1.288]
[1748063518509,0.43566033,668.66,667.56,1.288]
[1748063518715,0.73477047,668.65,667.56,1.288]
[1748063518913,0.73477495,668.64,667.56,1.288]